[Event "Czech Youth U12 Boys 2024"]
[Site "Kouty nad Desnou"]
[Date "2024.03.10"]
[Round "2.6"]
[White "Sochor, Vaclav"]
[Black "Bara, Jan"]
[Result "1-0"]
[ECO "B22"]
[WhiteElo "1826"]
[BlackElo "1852"]
[Annotator "NA RC"]
[PlyCount "111"]
[EventDate "2024.03.10"]
[EventType "swiss"]
[EventCountry "CZE"]
[SourceTitle "playchess.com"]
[Source "ChessBase"]
[SourceQuality "1"]
[TimeControl "40/5400+30:1800+30"]

1. e4 {[%emt 0:00:03]} c5 {[%emt 0:00:15]} 2. c3 {[%emt 0:00:28]} d5 {[%emt 0:00:35]} 3. exd5 {[%emt 0:00:59]} Qxd5 {[%emt 0:00:11]} 4. d4 {[%emt 0:01:46]} Nc6 {[%emt 0:01:18]} 5. Nf3 {[%emt 0:01:06]} Bg4 {[%emt 0:02:53]} 6. Be2 {[%emt 0:01:36]} e6 {[%emt 0:06:58]} 7. O-O {[%emt 0:05:39]} Rd8 {[%emt 0:03:46]} 8. Be3 {[%emt 0:05:20]} Nf6 {[%emt 0:11:20]} 9. h3 {[%emt 0:05:43]} Bh5 {[%emt 0:02:49]} 10. Nbd2 {[%emt 0:08:59]} cxd4 {[%emt 0:06:58]} 11. cxd4 {[%emt 0:04:42]} Bb4 {[%emt 0:05:11]} 12. Nb3 {[%emt 0:06:39]} O-O {[%emt 0:04:12]} 13. Rc1 {[%emt 0:02:28]} Na5 {[%emt 0:05:46]} 14. Nxa5 {[%emt 0:02:32]} Qxa5 {[%emt 0:00:52]} 15. Ne5 {[%emt 0:10:03]} Bxe2 {[%emt 0:00:57]} 16. Qxe2 {[%emt 0:00:59]} Nd5 {[%emt 0:07:04]} 17. a3 {[%emt 0:02:07]} Be7 18. Rc2 {[%emt 0:07:49]} Nxe3 {[%emt 0:11:41]} 19. fxe3 {[%emt 0:00:59]} Bf6 {[%emt 0:00:49]} 20. Rc5 {[%emt 0:04:21]} Qa4 {[%emt 0:04:50]} 21. Ng4 {[%emt 0:01:25]} Be7 {[%emt 0:10:33]} 22. Rc7 {[%emt 0:01:21]} Bd6 {[%emt 0:00:45]} 23. Rxb7 {[%emt 0:00:48]} Rc8 {[%emt 0:02:33]} 24. Qf3 {[%emt 0:02:02]} f5 {[%emt 0:00:43]} 25. Nf2 {[%emt 0:04:49]} Rf6 {[%emt 0:01:39]} 26. Nd3 {[%emt 0:04:26]} Qa6 {[%emt 0:04:21]} 27. Nf4 {[%emt 0:07:25]} g5 {[%emt 0:02:03]} 28. Nxe6 {[%emt 0:04:06]} Re8 {[%emt 0:00:32]} 29. Nc7 {[%emt 0:01:06]} Bxc7 {[%emt 0:00:04]} 30. Rxc7 {[%emt 0:00:08]} Qe6 {[%emt 0:00:42]} 31. Rc3 {[%emt 0:00:20]} f4 {[%emt 0:00:50]} 32. Qg4 {[%emt 0:02:17]} Qxg4 33. hxg4 {[%emt 0:00:12]} Rd6 {[%emt 0:02:05]} 34. exf4 {[%emt 0:00:53]} Rxd4 {[%emt 0:00:07]} 35. f5 {[%emt 0:00:16]} Rxg4 {[%emt 0:00:19]} 36. Rc7 {[%emt 0:00:30]} Re2 {[%emt 0:00:28]} 37. Rf2 {[%emt 0:00:24]} Rxf2 {[%emt 0:00:50]} 38. Kxf2 {[%emt 0:00:16]} Rf4+ {[%emt 0:00:04]} 39. Ke3 {[%emt 0:00:32]} a5 {[%emt 0:01:11]} 40. Rc5 {[%emt 0:00:20]} a4 {[%emt 0:00:01]} 41. g3 {[%emt 0:31:14]} Rf1 {[%emt 0:30:57]} 42. Ke2 {[%emt 0:00:20]} Rb1 {[%emt 0:00:51]} 43. Rb5 {[%emt 0:00:04]} Kf7 {[%emt 0:00:31]} 44. Kf3 {[%emt 0:02:10]} Rd1 {[%emt 0:00:55]} 45. Kg4 {[%emt 0:00:14]} h6 {[%emt 0:00:40]} 46. Rb7+ {[%emt 0:00:28]} Kf6 {[%emt 0:00:12]} 47. Rb6+ {[%emt 0:00:04]} Kg7 {[%emt 0:00:28]} 48. Rg6+ {[%emt 0:00:36]} Kh7 {[%emt 0:00:10]} 49. Ra6 {[%emt 0:00:09]} Rd2 {[%emt 0:00:34]} 50. Ra7+ {[%emt 0:00:07]} Kg8 {[%emt 0:00:11]} 51. Kh5 {[%emt 0:00:47]} Rxb2 {[%emt 0:00:39]} 52. Kg6 {[%emt 0:00:11]} Rb6+ {[%emt 0:00:55]} 53. f6 {[%emt 0:00:14]} Rb8 {[%emt 0:00:09]} 54. Rg7+ {[%emt 0:00:39]} Kh8 {[%emt 0:01:00]} 55. Rh7+ {[%emt 0:00:08]} Kg8 {[%emt 0:00:01]} 56. f7+ {[%emt 0:00:10]} 1-0

[Event "Czech Youth U12 Boys 2024"]
[Site "Kouty nad Desnou"]
[Date "2024.03.10"]
[Round "2.7"]
[White "Sotek, Matej"]
[Black "Frantsev, Iegor"]
[Result "1/2-1/2"]
[ECO "B12"]
[WhiteElo "1716"]
[BlackElo "1721"]
[Annotator "NA RC"]
[PlyCount "67"]
[EventDate "2024.03.10"]
[EventType "swiss"]
[EventCountry "CZE"]
[SourceTitle "playchess.com"]
[Source "ChessBase"]
[SourceQuality "1"]
[TimeControl "40/5400+30:1800+30"]

1. e4 {[%emt 0:00:03]} c6 {[%emt 0:00:08]} 2. d4 {[%emt 0:00:12]} d5 {[%emt 0:00:11]} 3. f3 {[%emt 0:00:24]} g6 {[%emt 0:01:10]} 4. c3 {[%emt 0:00:25]} e6 {[%emt 0:00:24]} 5. Bd3 {[%emt 0:00:49]} Bg7 {[%emt 0:00:51]} 6. Ne2 {[%emt 0:01:21]} Ne7 {[%emt 0:02:09]} 7. O-O {[%emt 0:02:00]} O-O {[%emt 0:00:27]} 8. Be3 {[%emt 0:03:56]} b6 {[%emt 0:01:27]} 9. Na3 {[%emt 0:02:58]} Ba6 {[%emt 0:02:10]} 10. Bxa6 {[%emt 0:06:11]} Nxa6 {[%emt 0:00:17]} 11. Qd3 {[%emt 0:00:16]} Nc7 {[%emt 0:01:14]} 12. Rad1 {[%emt 0:01:57]} Qd7 {[%emt 0:01:08]} 13. Qd2 {[%emt 0:02:37]} a5 {[%emt 0:07:26]} 14. Nc2 {[%emt 0:03:23]} b5 {[%emt 0:01:00]} 15. Bh6 {[%emt 0:02:07]} Na6 {[%emt 0:02:07]} 16. Ng3 {[%emt 0:02:48]} b4 {[%emt 0:01:33]} 17. Bxg7 {[%emt 0:01:13]} Kxg7 {[%emt 0:00:42]} 18. Qg5 {[%emt 0:05:25]} Ng8 {[%emt 0:08:26]} 19. Qd2 {[%emt 0:04:36]} Ne7 {[%emt 0:02:43]} 20. Ne3 f5 {[%emt 0:09:02]} 21. exf5 {[%emt 0:10:20]} exf5 {[%emt 0:05:29]} 22. Nc2 {[%emt 0:01:41]} Nc8 {[%emt 0:02:28]} 23. Rfe1 {[%emt 0:01:19]} Nd6 {[%emt 0:01:29]} 24. Qg5 {[%emt 0:01:36]} Kf7 {[%emt 0:05:56]} 25. Re2 {[%emt 0:08:53]} Rae8 {[%emt 0:02:59]} 26. Rde1 {[%emt 0:01:06]} Rxe2 {[%emt 0:00:35]} 27. Rxe2 {[%emt 0:00:35]} Re8 {[%emt 0:01:02]} 28. cxb4 {[%emt 0:10:55]} Rxe2 {[%emt 0:01:14]} 29. Nxe2 {[%emt 0:00:01]} Nxb4 {[%emt 0:01:13]} 30. Nxb4 {[%emt 0:00:16]} axb4 {[%emt 0:00:35]} 31. Qd2 {[%emt 0:03:57]} Qe7 {[%emt 0:01:20]} 32. b3 {[%emt 0:00:53]} Nb5 {[%emt 0:00:37]} 33. Kf2 {[%emt 0:01:14]} Qh4+ {[%emt 0:13:50]} 34. Kg1 {[%emt 0:00:41]} 1/2-1/2

[Event "Czech Youth U12 Boys 2024"]
[Site "Kouty nad Desnou"]
[Date "2024.03.10"]
[Round "2.8"]
[White "Zrust, Lukas"]
[Black "Malek, Daniel"]
[Result "1-0"]
[ECO "A21"]
[WhiteElo "1893"]
[BlackElo "2278"]
[Annotator "TA"]
[PlyCount "77"]
[EventDate "2024.03.10"]
[EventType "swiss"]
[EventCountry "CZE"]
[SourceTitle "playchess.com"]
[Source "ChessBase"]
[SourceQuality "1"]
[TimeControl "40/5400+30:1800+30"]

{[%evp 16,77,15,6,27,16,43,44,43,44,87,92,197,141,154,161,148,139,332,309,389,397,441,385,384,281,411,397,421,440,486,464,568,564,670,648,680,535,595,515,719,704,698,679,781,762,773,770,876,743,858,857,885,850,873,887,840,875,932,855,1120,872,824,824]} 1. c4 {[%emt 0:00:08]} e5 {[%emt 0:00:27]} 2. Nc3 {[%emt 0:00:07]} d6 {[%emt 0:01:46]} 3. g3 {[%emt 0:00:23]} Be6 {[%emt 0:01:52]} 4. Bg2 {[%emt 0:04:35]} c6 {[%emt 0:02:39]} 5. d3 {[%emt 0:02:12]} f5 {[%emt 0:09:05]} 6. e3 {[%emt 0:04:51]} Nf6 {[%emt 0:01:44]} 7. Nge2 {[%emt 0:05:39]} Be7 {[%emt 0:03:45]} 8. O-O {[%emt 0:01:17]} O-O {[%emt 0:01:41]} 9. b3 {[%emt 0:04:30]} Qe8 {[%emt 0:06:24]} 10. d4 {[%emt 0:06:17]} Qg6 {[%emt 0:05:10]} 11. d5 {[%emt 0:03:16]} Bd7 {[%emt 0:06:37] Weiß steht etwas besser.} 12. dxc6 {[%emt 0:05:03]} bxc6 {[%emt 0:04:17]} 13. Ba3 {[%emt 0:03:24]} Nh5 {[%emt 0:07:37]} (13... Qh6 $16) 14. Nb5 {[%emt 0:08:17]} (14. Nd5 $18 Bd8 15. Qd2) 14... f4 $16 {[%emt 0:03:45]} 15. exf4 {[%emt 0:06:12]} (15. Nxd6 $2 f3 16. Bh1 fxe2 17. Qxe2 Bxd6 $19 (17... Nxg3 18. fxg3 Bxd6 19. Rxf8+ Bxf8 20. Bxf8 $17)) (15. Bxd6 Bxd6 16. exf4 (16. Qxd6 Qxd6 17. Nxd6 f3 $17) (16. Nxd6 $2 f3 $19) 16... exf4 (16... cxb5 17. Bxa8 Kh8 18. Be4 $11) 17. Qxd6 (17. Nxd6 $2 f3 $19) 17... Qxd6 18. Nxd6 f3 $14) 15... exf4 {[%emt 0:00:32][%cal Be5f4,Bf4f3,Bf3g2][%mdl 32] [#] Weiss muss nun ...f3 beachten.} 16. Ned4 {[%emt 0:12:00] Droht Nc7 und aus.} (16. Bxd6 Bxd6 17. Qxd6 Qxd6 18. Nxd6 f3 $14) (16. Nxd6 f3 17. Bh1 fxe2 18. Qxe2 Bxd6 $17) 16... Bf6 $2 {[%emt 0:18:30] Verliert die Partie.} (16... a6 $16 {war nötig.}) 17. Nc7 $18 {[%emt 0:09:34][%cal Oa3d6] Bxd6! wäre nun fies.} (17. Bxd6 Bg4 $18) (17. Nxd6 $6 Bxd4 18. Qxd4 f3) 17... Bxd4 {[%emt 0:01:45]} 18. Qxd4 {[%emt 0:01:11]} (18. Nxa8 $2 c5 (18... Bxa1 19. Qxd6 Qxd6 20. Bxd6 $15) 19. Bd5+ Kh8 $19) 18... f3 {[%emt 0:02:11]} 19. Nxa8 {[%emt 0:06:59]} fxg2 {[%emt 0:00:54]} 20. Rfe1 {[%emt 0:00:12]} (20. Kxg2 $2 c5 (20... Nf4+ 21. Kh1 $17) 21. Qd5+ Kh8 $19) 20... c5 {[%emt 0:05:07]} (20... Na6 {kämpft weiter.} 21. Re7 (21. Qxd6 Qxd6 22. Bxd6 Rxa8 $16) (21. Qxa7 Bg4 $18) 21... Bg4 22. Qxd6 (22. Rxa7 Nxg3 23. hxg3 Qh6 $18) (22. Qxa7 Qf6 $11) 22... Qxd6 23. Bxd6 Rxa8 24. Kxg2 Rd8) 21. Qd5+ {[%emt 0:02:25]} Kh8 {[%emt 0:01:34]} 22. Nc7 {[%emt 0:01:50] Weiß steht klar auf Gewinn.} (22. Kxg2 $2 {verliert.} Nf4+ 23. Kg1 Nxd5 $19) (22. Qxg2 $2 {zu gefräßig.} Bc6 23. f3 Bxa8 $19) 22... Bc6 {[%emt 0:04:12]} 23. Qe6 {[%emt 0:02:17]} Qc2 {[%emt 0:01:50]} 24. Re2 {[%emt 0:01:16]} (24. Qxd6 $2 Qxf2#) 24... Qc3 {[%emt 0:01:36]} 25. Bb2 {[%emt 0:00:29]} Qf3 {[%emt 0:01:19]} 26. Qe3 {[%emt 0:02:45]} Qf7 {[%emt 0:02:19]} 27. Nb5 {[%emt 0:02:02]} Bxb5 {[%emt 0:02:08]} 28. cxb5 {[%emt 0:00:14]} Nd7 {[%emt 0:01:05]} 29. Rd1 {[%emt 0:01:40]} Nhf6 {[%emt 0:01:18]} 30. Bxf6 {[%emt 0:01:01]} Nxf6 {[%emt 0:00:04]} 31. Qe7 {[%emt 0:00:52]} g6 {[%emt 0:01:56]} 32. Qxf7 {[%emt 0:00:27]} Rxf7 {[%emt 0:00:05]} 33. Rxd6 {[%emt 0:00:23][%mdl 4096] Endspiel. KRR-KRN} Kg7 {[%emt 0:00:56]} 34. Kxg2 {[%emt 0:00:17]} Rb7 {[%emt 0:00:35]} 35. a4 {[%emt 0:00:27]} Kf7 {[%emt 0:00:28]} 36. Rc6 {[%emt 0:00:26]} Nd7 {[%emt 0:00:24]} 37. f4 {[%emt 0:00:36]} Kf8 {[%emt 0:00:43]} 38. g4 {[%emt 0:00:17]} Kf7 {[%emt 0:00:26]} 39. Kg3 {[%emt 0:00:06] Gewichteter Fehlerwert: Weiß=0.39/Schwarz=0.57.  Verlustzug:     	---       	Schwarz=1     Fehler:       	Weiß=1     	Schwarz=2     Ungenau:       	---       	Schwarz=3     OK:         	Weiß=10    	Schwarz=4     Bester:       	Weiß=1     	Schwarz=1} 1-0

[Event "Czech Youth U12 Boys 2024"]
[Site "Kouty nad Desnou"]
[Date "2024.03.10"]
[Round "2.9"]
[White "Sochor, Antonin"]
[Black "Novotny, Adam"]
[Result "1-0"]
[ECO "C18"]
[WhiteElo "1779"]
[BlackElo "2072"]
[Annotator "RC"]
[PlyCount "47"]
[EventDate "2024.03.10"]
[EventType "swiss"]
[EventCountry "CZE"]
[SourceTitle "playchess.com"]
[Source "ChessBase"]
[SourceQuality "1"]
[TimeControl "40/5400+30:1800+30"]

1. d4 {[%emt 0:00:04]} d5 {[%emt 0:00:35]} 2. Nc3 {[%emt 0:00:21]} e6 {[%emt 0:01:37]} 3. e4 {[%emt 0:00:16]} Bb4 {[%emt 0:02:55]} 4. e5 {[%emt 0:00:10]} c5 {[%emt 0:04:47]} 5. a3 {[%emt 0:03:32]} Bxc3+ {[%emt 0:04:30]} 6. bxc3 {[%emt 0:00:14]} cxd4 {[%emt 0:02:53]} 7. cxd4 {[%emt 0:01:02]} Nc6 {[%emt 0:02:07]} 8. Nf3 {[%emt 0:02:05]} Nge7 {[%emt 0:03:02]} 9. Bd3 {[%emt 0:02:07]} Qc7 {[%emt 0:04:15]} 10. O-O {[%emt 0:04:06]} Ng6 {[%emt 0:04:41]} 11. Be3 {[%emt 0:07:28]} O-O {[%emt 0:06:48]} 12. h4 {[%emt 0:05:10]} h6 {[%emt 0:07:48]} 13. Qd2 {[%emt 0:02:09]} Qe7 {[%emt 0:09:38]} 14. g3 {[%emt 0:05:33]} h5 {[%emt 0:08:06]} 15. Ng5 {[%emt 0:03:52]} Bd7 {[%emt 0:08:32]} 16. Qe2 {[%emt 0:04:52]} Rfc8 {[%emt 0:08:08]} 17. Qxh5 {[%emt 0:01:57]} Kf8 {[%emt 0:02:58]} 18. Bxg6 {[%emt 0:01:48]} Ke8 {[%emt 0:03:40]} 19. Nxf7 {[%emt 0:02:17]} Qf8 {[%emt 0:04:12]} 20. Rab1 {[%emt 0:07:53]} Ne7 {[%emt 0:02:26]} 21. Nd6+ {[%emt 0:02:30]} Kd8 {[%emt 0:00:17]} 22. Bg5 {[%emt 0:00:45]} Rc6 {[%emt 0:04:53]} 23. Bxe7+ {[%emt 0:01:58]} Kxe7 {[%emt 0:00:39]} 24. Qg5+ {[%emt 0:00:13]} 1-0

[Event "Czech Youth U12 Boys 2024"]
[Site "Kouty nad Desnou"]
[Date "2024.03.10"]
[Round "2.10"]
[White "Sudrich, Radek"]
[Black "Krisica, Lukas"]
[Result "0-1"]
[ECO "B43"]
[WhiteElo "1998"]
[BlackElo "1531"]
[Annotator "RC"]
[PlyCount "66"]
[EventDate "2024.03.10"]
[EventType "swiss"]
[EventCountry "CZE"]
[SourceTitle "playchess.com"]
[Source "ChessBase"]
[SourceQuality "1"]
[TimeControl "40/5400+30:1800+30"]

1. e4 {[%emt 0:00:26]} c5 {[%emt 0:01:03]} 2. Nf3 {[%emt 0:01:11]} e6 {[%emt 0:01:47]} 3. d4 {[%emt 0:02:59]} cxd4 {[%emt 0:02:19]} 4. Nxd4 a6 {[%emt 0:01:39]} 5. Nc3 {[%emt 0:02:49]} b5 {[%emt 0:02:25]} 6. Be3 {[%emt 0:01:24]} Bb7 {[%emt 0:02:11]} 7. Be2 {[%emt 0:01:34]} d6 {[%emt 0:03:49]} 8. O-O {[%emt 0:04:05]} Nd7 {[%emt 0:04:17]} 9. f3 {[%emt 0:04:05]} Ngf6 {[%emt 0:01:12]} 10. a3 {[%emt 0:03:31]} Be7 {[%emt 0:02:21]} 11. Qd2 {[%emt 0:06:18]} O-O {[%emt 0:03:36]} 12. Rad1 {[%emt 0:01:14]} Rc8 {[%emt 0:00:59]} 13. Nb3 {[%emt 0:02:44]} Qc7 {[%emt 0:00:52]} 14. Bf4 {[%emt 0:00:37]} Ne5 {[%emt 0:01:04]} 15. Bg5 {[%emt 0:09:33]} Rfd8 {[%emt 0:01:06]} 16. Bxf6 {[%emt 0:00:36]} Bxf6 {[%emt 0:00:12]} 17. Rc1 {[%emt 0:03:32]} Nc4 {[%emt 0:01:19]} 18. Bxc4 {[%emt 0:01:25]} bxc4 {[%emt 0:02:24]} 19. Na1 {[%emt 0:00:23]} Qc5+ {[%emt 0:00:58]} 20. Kh1 {[%emt 0:00:11]} d5 {[%emt 0:01:52]} 21. exd5 {[%emt 0:00:25]} Bxd5 {[%emt 0:00:12]} 22. Na4 {[%emt 0:02:42]} Qc6 {[%emt 0:01:10]} 23. Qa5 {[%emt 0:06:32]} Rb8 {[%emt 0:02:56]} 24. b3 {[%emt 0:01:05]} Bg5 {[%emt 0:08:16]} 25. bxc4 {[%emt 0:01:24]} Bxc1 26. Rxc1 {[%emt 0:01:58]} Qxc4 {[%emt 0:20:01]} 27. Nb3 {[%emt 0:01:03]} h6 {[%emt 0:02:14]} 28. Nac5 {[%emt 0:00:56]} Rdc8 {[%emt 0:02:33]} 29. a4 {[%emt 0:01:48]} Rxb3 {[%emt 0:01:11]} 30. Nxb3 {[%emt 0:00:46]} Qxb3 {[%emt 0:01:37]} 31. Qxa6 {[%emt 0:00:10]} Rxc2 {[%emt 0:02:48]} 32. Rxc2 {[%emt 0:00:16]} Qb1+ {[%emt 0:00:16]} 33. Rc1 {[%emt 0:00:08]} Qxc1+ {[%emt 0:00:07]} 0-1

[Event "Czech Youth U12 Boys 2024"]
[Site "Kouty nad Desnou"]
[Date "2024.03.10"]
[Round "2.11"]
[White "Kroulik, Stepan"]
[Black "Broz, Pavel"]
[Result "1-0"]
[ECO "C54"]
[WhiteElo "1683"]
[BlackElo "1911"]
[Annotator "RC"]
[PlyCount "41"]
[EventDate "2024.03.10"]
[EventType "swiss"]
[EventCountry "CZE"]
[SourceTitle "playchess.com"]
[Source "ChessBase"]
[SourceQuality "1"]
[TimeControl "40/5400+30:1800+30"]

1. e4 {[%emt 0:00:04]} e5 {[%emt 0:00:56]} 2. Nf3 {[%emt 0:00:07]} Nc6 {[%emt 0:01:21]} 3. Bc4 {[%emt 0:00:08]} Bc5 {[%emt 0:03:08]} 4. c3 {[%emt 0:00:23]} Nf6 {[%emt 0:01:21]} 5. d4 {[%emt 0:00:31]} exd4 {[%emt 0:02:22]} 6. cxd4 {[%emt 0:00:13]} Bb4+ {[%emt 0:00:30]} 7. Bd2 {[%emt 0:00:22]} Bxd2+ {[%emt 0:00:27]} 8. Nbxd2 {[%emt 0:00:12]} d6 {[%emt 0:00:34]} 9. O-O {[%emt 0:00:58]} O-O {[%emt 0:00:37]} 10. Re1 {[%emt 0:01:19]} Bg4 {[%emt 0:05:41]} 11. h3 {[%emt 0:00:37]} Bh5 {[%emt 0:00:35]} 12. Qc2 {[%emt 0:00:53]} d5 {[%emt 0:02:23]} 13. exd5 {[%emt 0:01:26]} Nxd5 {[%emt 0:00:19]} 14. Rac1 {[%emt 0:07:22]} Bg6 {[%emt 0:02:28]} 15. Qb3 {[%emt 0:02:44]} Ndb4 {[%emt 0:01:57]} 16. a3 {[%emt 0:01:56]} Na6 {[%emt 0:02:03]} 17. Bxa6 {[%emt 0:00:25]} bxa6 18. Rxc6 {[%emt 0:00:09]} Rb8 {[%emt 0:00:28]} 19. Qc3 {[%emt 0:00:16]} Rb7 {[%emt 0:00:50]} 20. Ne5 {[%emt 0:00:50]} Qb8 {[%emt 0:00:32]} 21. Nd7 {[%emt 0:00:29]} 1-0

[Event "Czech Youth U12 Boys 2024"]
[Site "Kouty nad Desnou"]
[Date "2024.03.10"]
[Round "2.12"]
[White "Havlik, David"]
[Black "Hanzel, Martin"]
[Result "1-0"]
[ECO "C45"]
[WhiteElo "1580"]
[BlackElo "1474"]
[Annotator "NA RC"]
[PlyCount "49"]
[EventDate "2024.03.10"]
[EventType "swiss"]
[EventCountry "CZE"]
[SourceTitle "playchess.com"]
[Source "ChessBase"]
[SourceQuality "1"]
[TimeControl "40/5400+30:1800+30"]

1. e4 {[%emt 0:00:02]} e5 {[%emt 0:00:08]} 2. Nf3 {[%emt 0:00:04]} Nc6 {[%emt 0:00:04]} 3. d4 {[%emt 0:00:04]} exd4 {[%emt 0:00:07]} 4. Nxd4 {[%emt 0:00:04]} Nf6 {[%emt 0:00:07]} 5. Nxc6 {[%emt 0:00:05]} bxc6 {[%emt 0:00:12]} 6. e5 {[%emt 0:00:09]} Qe7 {[%emt 0:00:08]} 7. Qe2 {[%emt 0:00:09]} Nd5 {[%emt 0:00:06]} 8. c4 {[%emt 0:00:11]} Ba6 {[%emt 0:00:05]} 9. b3 {[%emt 0:00:07]} Nb6 {[%emt 0:00:16]} 10. g3 {[%emt 0:03:10]} g6 {[%emt 0:01:08]} 11. Bg2 {[%emt 0:18:39]} Bg7 {[%emt 0:01:10]} 12. f4 {[%emt 0:06:09]} O-O {[%emt 0:00:43]} 13. Ba3 {[%emt 0:10:02]} d6 {[%emt 0:01:25]} 14. Bxc6 {[%emt 0:01:53]} Rab8 {[%emt 0:00:25]} 15. Nd2 {[%emt 0:05:29]} Bb7 {[%emt 0:00:33]} 16. Bxb7 {[%emt 0:01:44]} Rxb7 {[%emt 0:00:39]} 17. O-O {[%emt 0:01:59]} Re8 {[%emt 0:00:23]} 18. Qg2 {[%emt 0:03:21]} Rbb8 {[%emt 0:00:25]} 19. Rae1 {[%emt 0:01:55]} c5 {[%emt 0:02:02]} 20. Ne4 {[%emt 0:04:21]} dxe5 {[%emt 0:05:40]} 21. Bxc5 {[%emt 0:01:03]} Qe6 {[%emt 0:01:31]} 22. Bd6 {[%emt 0:01:55]} Rbd8 {[%emt 0:01:00]} 23. fxe5 {[%emt 0:00:42]} Bxe5 {[%emt 0:01:05]} 24. Bxe5 {[%emt 0:00:28]} Qxe5 {[%emt 0:00:21]} 25. Nf6+ {[%emt 0:00:24]} 1-0

[Event "Czech Youth U12 Boys 2024"]
[Site "Kouty nad Desnou"]
[Date "2024.03.11"]
[Round "3.1"]
[White "Velim, Vojtech"]
[Black "Kolar, Edvard"]
[Result "1-0"]
[ECO "A04"]
[WhiteElo "1889"]
[BlackElo "1759"]
[Annotator "NA RC"]
[PlyCount "39"]
[EventDate "2024.03.10"]
[EventType "swiss"]
[EventCountry "CZE"]
[SourceTitle "playchess.com"]
[Source "ChessBase"]
[SourceQuality "1"]
[TimeControl "40/5400+30:1800+30"]

{[%evp 16,33,197,118,98,91,95,16,81,0,4,13,32767,0,32767,32767,217,212,203,57]} 1. Nf3 {[%emt 0:00:05]} c5 {[%emt 0:00:04]} 2. c4 {[%emt 0:00:05]} d6 {[%emt 0:00:18]} 3. Nc3 {[%emt 0:00:08]} e5 {[%emt 0:00:35]} 4. e3 {[%emt 0:01:18]} Nc6 {[%emt 0:04:48]} 5. d4 {[%emt 0:00:28]} cxd4 {[%emt 0:04:27]} 6. exd4 {[%emt 0:00:09]} exd4 {[%emt 0:01:41]} 7. Nxd4 {[%emt 0:00:17]} Nf6 {[%emt 0:06:47]} 8. Be2 {[%emt 0:06:33]} g6 {[%emt 0:08:19]} (8... Be7 $14) 9. Bg5 {[%emt 0:06:19]} (9. Nxc6 $18 bxc6 10. Bf3) 9... Bg7 {[%emt 0:01:56]} 10. Ndb5 {[%emt 0:03:45]} O-O {[%emt 0:08:20]} 11. Nxd6 {[%emt 0:20:49]} ({White should play} 11. O-O $16) 11... Qb6 {[%emt 0:13:51]} (11... Qa5 $14 {deserves consideration.} 12. Bd2 Qb6) 12. Ndb5 {[%emt 0:31:57]} ({Better is} 12. O-O $16) 12... a6 {[%emt 0:12:30]} 13. Bxf6 {[%emt 0:07:15]} Bxf6 {[%emt 0:01:31]} 14. Nd5 $1 {[%emt 0:00:13]} Qa5+ {[%emt 0:05:25]} 15. b4 {[%emt 0:00:35]} Nxb4 $2 {[%emt 0:01:35]} (15... Qd8 $11 {and Black is okay.} 16. Nbc7 Nxb4 17. Nxf6+ (17. Nxa8 Nxd5 18. cxd5 Qa5+ 19. Kf1 Bxa1 $17) 17... Qxf6) 16. Nxf6+ {[%emt 0:00:41]} Kg7 {[%emt 0:00:59] [#]} 17. Kf1 $14 {[%emt 0:04:41]} Kxf6 {[%emt 0:10:43]} 18. Qd4+ {[%emt 0:00:14]} Kf5 {[%emt 0:03:01]} 19. g4+ {[%emt 0:00:44]} Kg5 {[%emt 0:00:48]} 20. h4+ {[%emt 0:00:09]} 1-0